bitfinex/quotes_ETHUSD_20220227
["timestamp","ask_amount","ask_price","bid_price","bid_amount"]
[1645930808457,16.13119885,2710.9,2710.2,0.5]
[1645930808961,11.25919885,2710.5,2710.2,0.5]
[1645930809159,4.872,2710.9,2710.2,0.5]
[1645930809160,11.25919885,2710.3,2710.2,0.5]
[1645930809963,11.25919885,2710.3,2710.2,0.0386]
[1645930810362,0.88238661,2710.3,2710.2,0.0386]
[1645930811008,12.14238661,2710.3,2710.2,0.0386]
[1645930811412,0.88238661,2710.3,2710.2,0.0386]
[1645930812815,0.88238661,2710.3,2709.7,8.19133143]
[1645930812816,12.14238661,2710.3,2709.7,8.19133143]
[1645930813013,12.14238661,2710.3,2709.7,1.0]
[1645930813212,0.88238661,2710.0,2709.6,0.09449553]
[1645930813814,0.88238661,2710.0,2709.8,0.5]
[1645930814014,11.26,2710.3,2709.8,0.5]
[1645930814223,11.26,2710.3,2709.7,1.0]
[1645930814414,11.26,2710.3,2710.1,0.5]
[1645930814656,1.03830736,2710.2,2710.1,0.5]
[1645930814862,1.92069397,2710.2,2710.1,0.5]
[1645930815865,1.92069397,2710.2,2710.1,0.0386]
[1645930816663,1.92069397,2710.2,2709.6,0.09449553]
[1645930816870,1.92069397,2710.2,2710.0,2.28154]
[1645930816871,1.03830736,2710.2,2710.0,2.28154]
[1645930817067,1.03830736,2710.2,2710.0,1.29194]
[1645930817068,0.88238661,2710.1,2710.0,1.29194]
[1645930817264,1.03830736,2710.2,2710.0,2.81454]
[1645930817665,1.03830736,2710.2,2710.0,3.00502108]
[1645930817966,7.36e-06,2710.2,2710.1,0.9896]
[1645930818166,7.36e-06,2710.2,2710.1,1.5226]
[1645930818413,7.36e-06,2710.2,2710.1,2.5226]
[1645930818711,0.77513938,2710.2,2710.1,3.5226]
[1645930818913,0.77513938,2710.2,2710.1,3.0612]
[1645930819521,1.81344674,2710.2,2710.1,3.0612]
[1645930819718,1.81343938,2710.2,2710.1,3.0612]
[1645930820118,1.81343938,2710.2,2710.1,2.0612]
[1645930820918,1.81343938,2710.2,2710.1,1.0612]
[1645930821119,1.81343938,2710.2,2710.1,0.533]
[1645930821520,1.81343938,2710.2,2710.1,1.061]
[1645930822760,1.81343938,2710.2,2710.1,1.00151]
[1645930825365,1.81343938,2710.2,2710.1,0.47351]
[1645930825765,1.81343938,2710.2,2709.9,0.53288951]
[1645930826011,1.03830736,2710.2,2709.9,0.53288951]
[1645930826213,16.2827,2710.7,2710.0,0.5]
[1645930826410,1.03830736,2710.3,2710.0,0.5]
[1645930827210,1.03830736,2710.3,2710.0,1.028]
[1645930827418,1.03830736,2710.3,2710.0,0.5]
[1645930827615,1.03830736,2710.3,2710.1,0.528]
[1645930827616,0.77513202,2710.2,2710.1,0.528]
[1645930827815,0.77513202,2710.2,2710.0,0.5]
[1645930828019,1.03830736,2710.3,2710.1,1.061]
[1645930828417,1.03830736,2710.3,2710.2,0.528]
[1645930828717,1.03830736,2710.3,2710.2,1.061]
[1645930828919,1.03830736,2710.3,2710.2,2.061]
[1645930829118,1.81343938,2710.3,2710.2,2.061]
[1645930832166,1.63209545,2710.3,2710.2,2.061]
[1645930832366,0.77513202,2710.3,2710.2,2.061]
[1645930832571,1.63209545,2710.3,2710.2,2.061]
[1645930833615,1.58209545,2710.3,2710.2,2.061]
[1645930836822,1.58209545,2710.3,2710.2,1.061]
[1645930837020,1.58209545,2710.3,2710.2,0.533]
[1645930837455,1.58209545,2710.3,2710.2,1.061]
[1645930839156,1.61464566,2710.3,2710.2,1.061]
[1645930842915,1.58209545,2710.3,2710.2,1.061]
[1645930843911,1.58209545,2710.3,2710.2,3.91668427]
[1645930843912,1.08209545,2710.3,2710.2,3.91668427]
[1645930844310,1.08209545,2710.3,2710.2,4.91668427]
[1645930844311,0.72513202,2710.3,2710.2,4.91668427]
[1645930844661,0.02117325,2711.2,2710.3,0.35685434]
[1645930844867,4.9095,2711.6,2710.5,2.84453]
[1645930845067,4.9095,2711.6,2711.5,0.528]
[1645930845266,3.6646,2711.6,2711.5,0.478]
[1645930845471,0.0052923,2711.7,2711.5,0.478]
[1645930846073,1.0,2711.8,2711.6,0.4776]
[1645930846471,0.00529408,2711.7,2711.5,0.533]
[1645930846672,0.00529408,2711.7,2711.5,1.033]
[1645930847072,0.00529408,2711.7,2711.6,0.4776]
[1645930847271,1.0,2711.8,2711.6,0.4776]
[1645930847473,1.0,2711.8,2711.7,0.4776]
[1645930850339,9.395e-05,2711.9,2711.8,4.0]
[1645930850643,0.02117262,2712.3,2711.9,6.50070605]
[1645930850834,0.00077024,2712.6,2712.0,0.533]
[1645930851030,0.00077024,2712.6,2712.0,1.08248108]
[1645930851231,0.00077024,2712.6,2712.1,0.65768108]
[1645930851430,0.00077024,2712.6,2712.2,1.55984291]
[1645930852030,0.00077024,2712.6,2712.5,0.4776]
[1645930852254,0.00077024,2712.6,2712.5,1.0106]
[1645930852856,0.3694,2713.5,2712.5,1.0106]
[1645930853055,11.26,2713.6,2712.7,0.4776]
[1645930853056,0.3694,2713.3,2712.7,0.4776]
[1645930853260,0.3694,2713.3,2712.5,0.533]
[1645930853856,0.3694,2713.3,2712.7,1.04752158]
[1645930854455,0.3694,2713.3,2712.7,1.52512158]
[1645930854657,0.3694,2713.3,2712.8,0.4776]
[1645930855061,0.3694,2713.5,2712.8,0.4776]
[1645930855264,0.3694,2713.5,2712.7,1.04752158]
[1645930855923,0.00564972,2713.2,2712.7,1.52512158]
[1645930856909,0.00268295,2713.4,2712.7,1.52512158]
[1645930857109,0.0056498,2713.1,2712.7,1.52512158]
[1645930858110,0.00268295,2713.4,2712.7,1.52512158]
[1645930858312,0.00564752,2713.0,2712.7,1.52512158]
[1645930859310,0.00268295,2713.4,2712.9,0.01974041]
[1645930859512,0.00564744,2713.0,2712.9,0.01974041]
[1645930860160,0.00564744,2713.0,2712.9,0.01815542]
[1645930860563,0.00268295,2713.4,2712.9,0.01815542]
[1645930860764,0.00564749,2713.1,2712.9,1.47267542]
[1645930861167,0.00564749,2713.1,2712.9,2.25027542]
[1645930861562,0.00564749,2713.1,2712.9,1.77267542]
[1645930861763,4.92618295,2713.7,2712.9,1.77267542]
[1645930861962,4.94877723,2713.7,2712.9,2.25027542]
[1645930862363,4.94877723,2713.7,2713.0,0.4776]
[1645930862564,3.78577723,2713.7,2713.0,1.0106]
[1645930862964,3.76318295,2713.7,2713.0,1.0106]
[1645930863166,0.00564958,2713.5,2713.1,1.18403571]
[1645930863432,0.00564958,2713.5,2713.1,1.71703571]
[1645930863824,0.00564958,2713.5,2713.1,2.19463571]
[1645930864020,0.00564958,2713.5,2713.1,1.71703571]
[1645930864222,3.7605,2713.7,2713.3,0.4776]
[1645930864424,0.00564961,2713.4,2713.1,1.71703571]
[1645930865022,0.00564961,2713.4,2713.1,2.19463571]
[1645930865223,3.7605,2713.7,2713.1,2.19463571]
[1645930865423,3.7605,2713.7,2713.2,0.5]
[1645930865621,0.00548309,2713.4,2713.2,0.9776]
[1645930865822,0.00548309,2713.4,2713.3,0.4776]
[1645930866425,3.7605,2713.7,2713.3,0.4776]
[1645930866624,3.7605,2713.7,2713.2,0.8]
[1645930866922,0.00548304,2713.5,2713.2,0.8]
[1645930867357,0.00548304,2713.5,2713.3,0.3]
[1645930867657,3.7605,2713.7,2713.3,0.3]
[1645930867857,0.00548304,2713.5,2713.3,0.3]
[1645930868868,2.02666991,2713.8,2713.4,0.533]
[1645930869075,0.00268295,2714.3,2713.6,0.3694]
[1645930869264,0.02200372,2713.9,2713.8,6.666]
[1645930869464,0.00268295,2714.5,2713.8,6.666]
[1645930869465,0.00268295,2714.5,2713.9,0.3694]
[1645930869866,0.3694,2715.4,2714.3,0.5]
[1645930869867,0.00268295,2715.2,2714.3,0.5]
[1645930870069,0.1472,2715.1,2714.3,0.5]
[1645930870269,0.00268295,2715.0,2714.3,0.5]
[1645930871416,0.00268295,2715.0,2714.0,0.3]
[1645930871722,0.00417787,2714.7,2714.0,0.5]
[1645930872122,0.00417787,2714.7,2714.0,0.8]
[1645930872521,11.63208295,2715.0,2714.0,0.8]
[1645930872721,0.00565984,2714.5,2714.0,0.5]
[1645930873721,0.02963595,2714.9,2714.0,0.5]
[1645930873722,0.007,2714.9,2714.0,0.5]
[1645930873920,0.00565989,2714.4,2714.0,0.5]
[1645930875257,0.00565992,2714.3,2714.0,0.5]
[1645930875665,11.6294,2713.8,2713.7,0.03000138]
[1645930876260,0.3694,2713.8,2713.7,0.03000138]
[1645930876460,0.3694,2713.8,2713.7,0.02497626]
[1645930877062,1.07491314,2713.9,2713.7,0.02497626]
[1645930877266,0.70551314,2713.9,2713.7,0.02497626]
[1645930878704,0.70551314,2713.9,2713.7,0.02943617]
[1645930879709,0.70551314,2713.9,2713.7,0.05222285]
[1645930879909,0.70551314,2713.9,2713.7,0.0572481]
[1645930880910,0.70551314,2713.9,2713.7,0.05222285]
[1645930881111,0.70551314,2713.9,2713.7,0.0572481]
[1645930882165,0.70551314,2713.9,2713.7,0.05222285]
[1645930882459,0.70551314,2713.9,2713.7,0.0572481]
[1645930882659,1.07491314,2713.9,2713.7,0.0572481]
[1645930883157,0.70551314,2713.9,2713.7,0.0572481]
[1645930883357,0.70551314,2713.9,2713.7,0.05222285]
[1645930883358,1.07491314,2713.9,2713.7,0.05222285]
[1645930883559,1.07491314,2713.9,2713.7,0.0572481]
[1645930883757,12.33491314,2713.9,2713.7,0.0572481]
[1645930884562,12.33491314,2713.9,2713.7,0.05222285]
[1645930884767,12.33491314,2713.9,2713.7,0.0572481]
[1645930885768,12.33491314,2713.9,2713.7,0.05222285]
[1645930886017,12.33491314,2713.9,2713.7,0.0572481]
[1645930886817,12.33491314,2713.9,2713.7,0.05222285]
[1645930887218,12.33491314,2713.9,2713.7,0.0572481]
[1645930888019,12.33491314,2713.9,2713.7,0.05222285]
[1645930888517,12.33491314,2713.9,2713.7,0.0572481]
[1645930889318,12.33491314,2713.9,2713.7,0.05222285]
[1645930889519,12.33491314,2713.9,2713.7,0.0572481]
[1645930890073,15.1294,2713.8,2713.7,0.0572481]
[1645930890273,16.6866659,2713.8,2713.7,0.0572481]
[1645930890470,16.6866659,2713.8,2713.4,0.48353401]
[1645930890471,11.6294,2713.6,2713.4,0.48353401]
[1645930890669,13.33422024,2713.5,2713.4,0.23353401]
[1645930891067,13.18682024,2713.5,2713.4,0.23353401]
[1645930891270,11.6294,2713.3,2713.1,0.4135611]
[1645930891472,11.6294,2713.3,2713.1,0.41454657]
[1645930892269,11.6294,2713.3,2713.1,0.43863351]
[1645930892469,15.1294,2713.2,2713.1,0.4386335]
[1645930893508,15.1294,2713.2,2713.1,0.43961897]
[1645930893913,11.6294,2713.2,2713.1,0.43961897]
[1645930894412,11.6294,2713.2,2713.1,0.46469138]
[1645930895218,11.6294,2713.2,2713.1,0.48877832]
[1645930895414,15.1294,2713.2,2713.1,0.48976379]
[1645930895916,11.6294,2713.2,2713.1,0.48976379]
[1645930896117,0.68430448,2713.4,2713.1,0.48976379]
[1645930896118,0.4846,2713.4,2713.1,0.48976379]
[1645930896321,0.4846,2713.4,2713.1,0.51385073]
[1645930896518,0.4846,2713.4,2713.1,0.5148362]
[1645930896918,0.4846,2713.4,2713.1,0.5198499]
[1645930897177,11.7446,2713.4,2713.1,0.5198499]
[1645930897372,11.7446,2713.4,2713.1,0.54393684]
[1645930897570,11.7446,2713.4,2713.1,0.54492231]
[1645930897771,11.7446,2713.4,2713.1,0.53990861]
[1645930897973,11.7446,2713.4,2713.1,0.54492231]
[1645930898371,11.7446,2713.4,2713.1,0.56900925]
[1645930898573,11.7446,2713.4,2713.1,0.56999472]
[1645930899074,0.4846,2713.4,2713.1,0.56498102]
[1645930899273,0.4846,2713.4,2713.1,0.56968136]
[1645930899474,0.4846,2713.4,2713.1,0.5937683]
[1645930899878,0.4846,2713.4,2713.1,0.8937683]
[1645930900281,0.4846,2713.4,2713.2,1.03196136]
[1645930901609,0.4846,2713.4,2713.2,1.03666161]
[1645930902511,0.4846,2713.4,2713.2,1.03196136]
[1645930902709,0.4846,2713.4,2713.2,1.03697497]
[1645930903610,0.4846,2713.4,2713.2,2.04757497]
[1645930903813,0.4846,2713.4,2713.2,1.56496136]
[1645930904012,0.4846,2713.4,2713.2,1.56997497]
[1645930904865,0.4846,2713.4,2713.2,1.56496136]
[1645930905267,0.4846,2713.4,2713.2,1.56997497]
[1645930906068,0.47968177,2713.4,2713.2,1.56496136]
[1645930906668,0.47968177,2713.4,2713.2,1.56997497]
[1645930907268,0.47968177,2713.4,2713.2,1.56496136]
[1645930907771,0.47968177,2713.4,2713.2,1.56997497]
[1645930908433,0.47968177,2713.4,2713.2,1.56496136]
[1645930908834,0.47968177,2713.4,2713.2,1.56997497]
[1645930909435,0.47968177,2713.4,2713.2,0.00501361]
[1645930909635,0.47968177,2713.4,2713.1,1.79005224]
[1645930909840,0.47968177,2713.4,2713.1,0.79005224]
[1645930910139,0.47968177,2713.4,2713.2,0.00150408]
[1645930910942,0.47968177,2713.4,2713.1,0.79005224]
[1645930911141,0.47968177,2713.4,2713.2,0.00150408]
[1645930912039,0.47968177,2713.4,2713.1,0.79005224]
[1645930912284,0.47968177,2713.4,2713.2,0.00150408]
[1645930912684,0.42968177,2713.4,2713.2,0.50150408]
[1645930912889,0.42968177,2713.4,2713.2,0.00150408]
[1645930913289,0.42968177,2713.4,2713.1,1.32305224]
[1645930913489,0.00268295,2713.8,2713.1,1.69245224]
[1645930913696,0.70551314,2713.9,2713.4,6.67810925]
[1645930913993,0.70551314,2713.9,2713.5,11.5158]
[1645930913994,0.00268295,2713.8,2713.5,11.5158]
[1645930914194,0.70551314,2713.9,2713.6,0.8694]
[1645930914393,0.70551314,2713.9,2713.7,1.3496]
[1645930914593,0.70551314,2713.9,2713.8,1.15600482]
[1645930914792,0.70551314,2713.9,2713.8,1.83620482]
[1645930915193,0.00415419,2714.0,2713.9,5.0]
[1645930915396,0.00415419,2714.0,2713.9,10.033]
[1645930915600,0.00415419,2714.0,2713.9,7.9802]
[1645930915931,3.55758295,2714.9,2714.0,0.3694]
[1645930916134,0.0041545,2714.1,2714.0,0.1472]
[1645930916331,0.0041545,2714.1,2714.0,0.6802]
[1645930916836,0.0041545,2714.1,2713.9,1.30098547]
[1645930917035,11.63208295,2714.8,2713.9,1.30098547]
[1645930917036,11.63208295,2714.8,2713.9,1.30197094]
[1645930917338,0.00565802,2714.2,2713.9,0.30197094]
[1645930917734,0.00565802,2714.2,2713.9,0.02605788]
[1645930917935,0.00565802,2714.2,2713.9,1.25431086]
[1645930918138,0.00268295,2714.6,2713.9,1.25529633]
[1645930918334,1.55692201,2714.6,2713.9,1.55529633]
[1645930918536,0.00565802,2714.2,2714.0,0.533]
[1645930919137,0.00565802,2714.2,2714.0,0.53398547]
[1645930919339,0.00268295,2714.8,2714.0,0.53398547]
[1645930919536,0.00565799,2714.2,2714.0,0.53398547]
[1645930919765,0.00565799,2714.2,2714.0,0.55807241]
[1645930920166,0.00565799,2714.2,2714.0,0.55905788]
[1645930920566,0.00268295,2714.8,2714.0,0.55905788]
[1645930920769,12.81938304,2714.8,2714.0,0.58314482]
[1645930920967,1.55670009,2714.7,2714.0,0.58314482]
[1645930921167,1.55670009,2714.7,2714.0,0.58413029]
[1645930921869,1.55670009,2714.7,2714.0,0.60821723]
[1645930922067,0.00566034,2714.5,2714.0,0.6092027]
[1645930922870,0.00268295,2714.8,2714.0,0.63328964]
[1645930923167,0.0056604,2714.4,2714.1,0.92112]
[1645930923421,0.0056604,2714.4,2714.1,1.22112]
[1645930924019,0.0056604,2714.4,2714.1,1.52112]
[1645930924218,0.02532114,2714.8,2714.4,1.12190325]
[1645930924219,0.00268295,2714.8,2714.4,1.12190325]
[1645930924420,0.02263819,2714.8,2714.1,2.20132]
[1645930924619,0.02532114,2714.8,2714.1,2.20132]
[1645930925223,0.02532114,2714.8,2714.2,2.21141]
[1645930925423,0.007,2714.9,2714.5,1.92099]
[1645930925623,0.007,2714.9,2714.6,4.1802]
[1645930925822,0.007,2714.9,2714.6,5.4802]
[1645930926223,0.007,2714.9,2714.7,1.0]
[1645930926423,0.007,2714.9,2714.8,1.71637447]
[1645930926823,0.01266012,2714.9,2714.8,1.71637447]
[1645930927270,0.01266012,2714.9,2714.8,1.71735994]
[1645930927870,0.007,2714.9,2714.8,1.71735994]
[1645930928071,0.007,2714.9,2714.8,1.74144688]
[1645930928270,0.007,2714.9,2714.8,1.74243235]
[1645930929080,0.007,2714.9,2714.8,1.76651929]
[1645930929280,0.007,2714.9,2714.8,1.76750476]
[1645930930078,0.007,2714.9,2714.8,5.26750476]
[1645930930277,0.007,2714.9,2714.8,1.93977717]
[1645930930479,0.007,2714.9,2714.8,2.93977717]
[1645930930921,0.007,2714.9,2714.8,1.93977717]
[1645930931119,0.007,2714.9,2714.8,2.96386411]
[1645930931328,0.007,2714.9,2714.8,1.96484958]
[1645930931523,0.007,2714.9,2714.8,2.96484958]
[1645930931921,0.007,2714.9,2714.8,1.96484958]
[1645930932124,0.007,2714.9,2714.8,2.96484958]
[1645930932325,0.007,2714.9,2714.8,1.98992199]
[1645930932522,0.007,2714.9,2714.8,6.48992199]
[1645930933124,0.007,2714.9,2714.8,6.46583505]
[1645930933324,3.52267987,2715.6,2714.8,2.96583505]
[1645930933523,3.52267987,2715.6,2715.5,1.30116333]
[1645930933725,3.52267987,2715.6,2715.5,0.3]
[1645930933936,4.6674,2716.2,2715.5,0.3]
[1645930934125,11.21,2716.1,2715.5,0.02408694]
[1645930934685,11.21,2716.1,2715.5,0.02507241]
[1645930935275,11.21,2716.1,2715.5,0.04915935]
[1645930935476,11.21,2716.1,2715.5,0.05014482]
[1645930935678,15.0794,2716.1,2715.5,0.05014482]
[1645930936079,11.5794,2715.9,2715.5,0.05014482]
[1645930936378,3.5,2716.1,2714.8,1.22878817]
[1645930936379,0.06572403,2715.3,2714.8,1.22878817]
[1645930936585,0.06572403,2715.3,2714.8,0.07718817]
[1645930936978,11.64512403,2715.3,2714.8,0.07718817]
[1645930937178,11.64512403,2715.3,2714.8,0.10127511]
[1645930937378,11.59512403,2715.3,2714.8,0.10127511]
[1645930937579,11.59512403,2715.3,2714.9,0.0051023]
[1645930938636,11.59512403,2715.3,2714.8,0.10127511]
[1645930938838,11.59512403,2715.3,2715.0,0.00510221]
[1645930939740,11.59512403,2715.3,2714.8,0.10127511]
[1645930939941,11.59512403,2715.3,2715.0,0.00510211]
[1645930940339,11.59512403,2715.3,2715.1,0.5]
[1645930940539,0.01572403,2715.3,2715.1,0.5]
[1645930941140,0.01572403,2715.3,2715.1,0.50510202]
[1645930942195,14.94512403,2715.5,2715.1,0.5]
[1645930942378,14.95078486,2715.5,2715.1,0.50510202]
[1645930943384,14.94512403,2715.5,2715.1,0.5]
[1645930943585,11.6294,2715.3,2715.2,0.00510183]
[1645930944587,11.6294,2715.3,2715.1,0.5]
[1645930944885,11.6294,2715.3,2715.1,0.50510192]
[1645930945687,11.6294,2715.3,2715.1,0.5]
[1645930945934,3.31572403,2715.5,2715.1,0.50510202]
[1645930945935,0.3194,2715.4,2715.1,0.50510202]
[1645930946136,0.3194,2715.4,2715.3,0.5]
[1645930946435,1.87585711,2715.4,2715.3,0.5]
[1645930946836,13.13585711,2715.4,2715.3,0.5]
[1645930949870,1.87585711,2715.4,2715.3,0.5]
[1645930950573,13.13585711,2715.4,2715.3,0.5]
[1645930952372,16.63585711,2715.4,2715.3,0.5]
[1645930952773,13.13585711,2715.4,2715.3,0.5]
[1645930952972,16.63585711,2715.4,2715.3,0.5]
[1645930954319,13.18585711,2715.4,2715.3,0.5]
[1645930955722,1.92585711,2715.4,2715.3,0.5]
[1645930956122,13.18585711,2715.4,2715.3,0.5]
[1645930956323,0.8887687,2715.2,2714.6,0.3972]
[1645930956521,0.8887687,2715.2,2714.6,0.4472]
[1645930956522,1.55646146,2715.1,2714.6,0.4472]
[1645930956722,0.8887687,2715.2,2714.6,0.4472]
[1645930956922,1.55646089,2715.1,2715.0,0.5]
[1645930957176,0.8887687,2715.2,2714.6,0.4472]
[1645930957768,1.55645143,2715.1,2714.6,0.4472]
[1645930957969,0.8887687,2715.2,2714.6,0.4472]
[1645930958369,0.8387687,2715.2,2714.6,0.4472]
[1645930960576,0.8387687,2715.2,2714.8,0.00508983]
[1645930961716,0.8387687,2715.2,2714.6,0.4472]
[1645930962117,0.8387687,2715.2,2714.7,0.533]
[1645930962522,0.8387687,2715.2,2714.7,0.833]
[1645930963019,0.8387687,2715.2,2714.9,1.11693216]
[1645930963223,0.8387687,2715.2,2714.9,1.41693216]
[1645930965274,0.8387687,2715.2,2714.9,1.42202597]
[1645930966275,0.8387687,2715.2,2714.9,1.41693216]
[1645930966480,0.8387687,2715.2,2714.9,1.42202597]
[1645930967176,0.8387687,2715.2,2714.9,1.79142597]
[1645930967377,0.8387687,2715.2,2714.9,1.78633216]
[1645930967582,0.8387687,2715.2,2715.0,0.533]
[1645930967780,0.8387687,2715.2,2715.0,0.9024]
[1645930967977,0.8387687,2715.2,2715.0,1.82322]
[1645930968181,6.87e-05,2715.2,2715.0,1.82322]
[1645930968436,0.00566197,2715.5,2715.0,1.82322]
[1645930968437,0.00566197,2715.5,2715.1,5.8929121]
[1645930968639,0.00267283,2716.0,2715.2,0.9024]
[1645930968835,1.55865196,2716.0,2715.4,0.3694]
[1645930969033,1.31207564,2716.1,2715.5,1.97018]
[1645930969034,1.33471873,2716.1,2715.5,1.97018]
[1645930969233,1.33471873,2716.1,2715.6,0.533]
[1645930969635,1.55593122,2716.0,2715.6,0.533]
[1645930970040,1.56159338,2716.0,2715.6,0.533]
[1645930970244,0.00566216,2716.0,2715.6,0.533]
[1645930970938,1.31207564,2716.1,2715.6,0.533]
[1645930971139,1.55599499,2716.0,2715.6,0.533]
[1645930971342,1.55599499,2716.0,2715.5,0.3]
[1645930971343,3.50566218,2715.9,2715.5,0.3]
[1645930971542,1.55599499,2715.8,2715.4,0.3]
[1645930971844,11.6294,2715.7,2715.2,0.5]
[1645930972282,11.6294,2715.5,2714.9,1.11693216]
[1645930972480,12.81599499,2715.4,2714.9,1.11693216]
[1645930972685,1.55599499,2715.3,2715.1,0.00509353]
[1645930973481,1.55599499,2715.3,2714.9,1.11693216]
[1645930973679,11.26,2715.4,2715.1,0.00509353]
[1645930973881,1.55633424,2715.3,2715.1,0.00509353]
[1645930974080,0.3750622,2715.5,2715.1,0.00509353]
[1645930974081,0.0056622,2715.5,2715.1,0.00509353]
[1645930974479,0.98943503,2715.8,2715.1,0.00509353]
[1645930974679,0.98943503,2715.8,2714.9,1.94993216]
[1645930974680,1.556202,2715.7,2714.9,1.94993216]
[1645930974882,0.00566235,2715.5,2715.1,0.00509353]
[1645930975083,0.00566235,2715.5,2715.1,0.53809353]
[1645930975283,0.00566235,2715.5,2715.1,0.83809353]
[1645930975487,0.00566235,2715.5,2715.1,4.33809353]
[1645930975922,3.57898217,2715.9,2715.1,5.333]
[1645930976120,0.00413431,2715.6,2715.1,5.333]
[1645930976320,0.00413431,2715.6,2715.1,1.833]
[1645930976721,0.00413431,2715.6,2715.1,0.833]
[1645930976923,3.5577,2715.9,2715.1,0.833]
[1645930977122,3.5577,2715.9,2715.1,4.333]
[1645930977324,0.00566213,2715.6,2715.2,0.00510741]
[1645930977524,0.00566213,2715.6,2715.3,0.533]
[1645930977724,0.00566213,2715.6,2715.3,0.833]
[1645930978326,0.00266147,2715.8,2715.3,0.833]
[1645930978527,0.00566228,2715.6,2715.3,0.833]
[1645930978726,0.00566228,2715.6,2715.4,0.1472]
[1645930978930,0.00566228,2715.6,2715.4,0.6802]
[1645930979327,3.5577,2715.9,2715.4,0.9802]
[1645930979530,3.5577,2715.9,2715.4,0.833]
[1645930979780,3.51325758,2715.9,2715.4,0.833]
[1645930980580,3.51325758,2715.9,2715.2,0.1472]
[1645930980787,3.51325758,2715.9,2715.1,0.533]
[1645930980978,1.55613714,2715.8,2715.1,0.533]
[1645930981179,0.00266147,2715.8,2715.1,0.533]
[1645930981379,3.51325758,2715.9,2715.1,0.533]
[1645930981579,0.00266147,2715.8,2715.1,0.533]
[1645930981782,15.14265758,2715.9,2714.9,2.95847216]
[1645930981981,1.55880348,2715.8,2715.3,0.00153635]
[1645930982182,1.55614201,2715.8,2715.3,0.00153635]
[1645930982682,11.26,2715.7,2715.3,0.00153635]
[1645930982882,0.3694,2715.5,2715.3,0.00153635]
[1645930983084,0.3694,2715.5,2714.9,1.11693216]
[1645930983287,0.3694,2715.5,2715.3,0.00512115]
[1645930983721,11.6294,2715.5,2715.3,0.00512115]
[1645930984123,0.00566222,2715.7,2715.3,0.00512115]
[1645930984323,1.54036147,2715.8,2714.9,1.11693216]
[1645930984324,1.55626672,2715.6,2714.9,1.11693216]
[1645930984522,1.54036147,2715.8,2714.9,1.11693216]
[1645930984523,0.00566199,2715.7,2715.3,0.00512121]
[1645930985325,0.00566199,2715.7,2714.9,1.41693216]
[1645930985525,0.00266147,2715.7,2714.9,1.41693216]
[1645930985724,1.17096147,2715.8,2714.9,1.94993216]
[1645930985930,0.00566215,2715.7,2715.3,0.00512115]
[1645930986527,0.00566215,2715.7,2714.9,1.94993216]
[1645930986727,0.00266147,2715.7,2714.9,1.94993216]
[1645930986926,0.00266147,2715.7,2715.3,0.00512115]
[1645930986927,0.00566215,2715.7,2715.3,0.00512115]
[1645930987179,0.00566215,2715.7,2715.5,0.5]
[1645930987372,0.00566215,2715.7,2715.3,0.00512115]
[1645930987772,0.00566215,2715.7,2714.9,1.94993216]
[1645930987773,3.51325758,2715.9,2714.9,1.94993216]
[1645930987972,0.00266147,2715.8,2714.9,1.94993216]
[1645930988174,0.0054942,2715.7,2715.3,0.00512115]
[1645930988775,11.6294,2715.5,2715.3,0.00512115]
[1645930988979,12.81619458,2715.4,2714.9,1.11693216]
[1645930989175,11.26,2715.4,2714.9,1.11693216]
[1645930989379,11.26,2715.4,2715.3,0.00512115]
[1645930990678,11.26,2715.4,2715.2,0.0051213]
[1645930990914,0.3694,2715.5,2715.2,0.0051213]
[1645930991123,11.6294,2715.5,2715.2,0.0051213]
[1645930991520,11.6294,2715.5,2714.9,1.11693216]
[1645930991718,11.6294,2715.5,2715.2,0.0051213]
[1645930992120,11.5794,2715.5,2715.2,0.0051213]
[1645930992522,1.55628483,2715.4,2715.2,0.0051213]
[1645930992719,12.81628483,2715.4,2714.9,1.11693216]
[1645930992923,11.26,2715.4,2715.2,0.0051213]
[1645930993724,11.5794,2715.5,2715.2,0.0051213]
[1645930993924,11.5794,2715.5,2714.6,0.5]
[1645930994123,11.5794,2715.5,2715.2,0.0051214]
[1645930994976,11.5794,2715.5,2714.6,0.8]
[1645930995377,11.5794,2715.5,2715.2,0.0051213]
[1645930995978,12.81630581,2715.4,2715.2,0.0051213]
[1645930996176,11.26,2715.4,2714.6,0.8]
[1645930996576,11.26,2715.4,2715.2,0.0051213]
[1645930996978,11.26,2715.5,2715.2,0.0051213]
[1645930997175,11.5794,2715.5,2715.2,0.0051213]
[1645930997376,12.81627573,2715.4,2714.6,0.8]
[1645930997576,11.26,2715.4,2714.6,0.8]
[1645930997780,11.26,2715.4,2715.2,0.0051213]
[1645930998719,11.26,2715.4,2714.6,0.8]
[1645930998926,11.26,2715.4,2715.2,0.0051214]
[1645931000027,1.55629562,2715.3,2715.2,0.0051214]
[1645931000229,11.26,2715.4,2715.2,0.0051214]
[1645931001027,11.26,2715.4,2714.6,0.8]
[1645931001327,1.55627048,2715.3,2715.2,0.00480131]
[1645931001529,11.26,2715.4,2715.2,0.00480131]
[1645931002275,11.26,2715.4,2714.6,0.8]
[1645931002476,1.55628354,2715.3,2715.2,0.00480131]
[1645931003079,11.26,2715.4,2715.2,0.00480131]
[1645931003579,13.1356744,2715.3,2715.2,0.00480131]
[1645931003780,12.8162744,2715.3,2715.2,0.00480131]
[1645931003983,12.8162744,2715.3,2715.1,0.0048014]
[1645931004184,0.3694,2715.2,2715.1,0.0048014]
[1645931004380,11.6294,2715.2,2715.1,0.0048014]
[1645931004580,11.6294,2715.2,2714.6,0.8]
[1645931004781,11.6294,2715.2,2714.6,1.1]
[1645931004982,11.6294,2715.2,2715.0,0.0045815]
[1645931005382,11.26,2715.2,2715.0,0.0045815]
[1645931005587,11.6294,2715.3,2715.0,0.0045815]
[1645931005785,11.6294,2715.3,2714.6,1.1]
[1645931006033,11.6294,2715.3,2715.0,0.00458159]
[1645931007139,11.6294,2715.3,2714.6,1.1]
[1645931007339,11.6294,2715.3,2715.0,0.0045815]
[1645931007739,11.26,2715.4,2715.0,0.0045815]
[1645931008140,11.26,2715.4,2714.6,1.1]
[1645931008541,0.00570972,2715.7,2715.1,0.00512159]